bitfinex-derivatives/quotes_SOLF0:USTF0_20250329
["timestamp","ask_amount","ask_price","bid_price","bid_amount"]
[1743259125494,13.3889,126.18,126.16,28.25472124]
[1743259125695,7.9296,126.17,126.16,28.25472124]
[1743259127497,13.3892,126.18,126.16,28.25472124]
[1743259128302,7.9296,126.17,126.16,28.25472124]
[1743259128498,7.9296,126.17,126.14,28.2]
[1743259128499,9.12005154,126.17,126.14,28.2]
[1743259128905,7.9308,126.16,126.14,28.2]
[1743259129597,7.9308,126.16,126.14,28.25157307]
[1743259129804,7.98904332,126.16,126.14,28.25157307]
[1743259130504,7.98904332,126.16,126.14,0.05157307]
[1743259130804,7.98904332,126.16,126.14,28.25157307]
[1743259131204,7.9308,126.15,126.14,28.25157307]
[1743259132005,0.05824332,126.16,126.14,37.37162461]
[1743259132893,0.05824332,126.16,126.15,7.9308]
[1743259134402,0.05824332,126.16,126.14,37.37162461]
[1743259135101,0.05824332,126.16,126.14,28.25157307]
[1743259135805,0.05824332,126.16,126.14,36.18297307]
[1743259138502,0.05824332,126.16,126.14,45.30302461]
[1743259142209,0.05824332,126.16,126.14,36.18297307]
[1743259142715,0.05824332,126.16,126.15,7.9308]
[1743259142911,0.05824332,126.16,126.15,17.05085154]
[1743259144615,0.05824332,126.16,126.14,28.25157307]
[1743259145813,7.98884332,126.16,126.14,28.25157307]
[1743259146014,0.05824332,126.16,126.14,28.25157307]
[1743259146416,0.05824332,126.16,126.14,36.18257307]
[1743259146616,0.05824332,126.16,126.14,28.25157307]
[1743259146911,0.05824332,126.16,126.14,37.37162461]
[1743259147116,0.05824332,126.16,126.15,17.05085154]
[1743259154929,0.05824332,126.16,126.15,18.47586745]
[1743259155130,0.05824332,126.16,126.15,7.9308]
[1743259159630,0.05824332,126.16,126.15,17.05085154]
[1743259160234,11.18865154,126.22,126.15,10.54506678]
[1743259160431,11.18865154,126.22,126.17,9.12005154]
[1743259160633,7.9271,126.21,126.18,28.18]
[1743259161334,7.98403167,126.21,126.18,36.16021009]
[1743259161633,0.05693167,126.21,126.18,36.16021009]
[1743259162236,0.05693167,126.21,126.18,28.23161009]
[1743259162632,7.98413167,126.21,126.18,28.23161009]
[1743259162827,0.05693167,126.21,126.18,28.23161009]
[1743259163035,9.17698321,126.21,126.18,28.23161009]
[1743259163236,7.928,126.2,126.18,28.23161009]
[1743259166242,9.17698321,126.21,126.18,28.23161009]
[1743259166940,7.9283,126.19,126.18,28.23161009]
[1743259168645,7.928,126.2,126.18,28.23161009]
[1743259168846,9.17698321,126.21,126.18,28.23161009]
[1743259170749,7.928,126.2,126.18,28.23161009]
[1743259171944,17.10428321,126.21,126.18,36.16051009]
[1743259172247,7.98423167,126.21,126.18,36.16051009]
[1743259173450,0.05693167,126.21,126.18,37.35166163]
[1743259174752,7.98403167,126.21,126.18,45.28026163]
[1743259176149,0.05693167,126.21,126.19,7.9282]
[1743259177654,9.17698321,126.21,126.18,28.23161009]
[1743259178455,17.10448321,126.21,126.18,36.16051009]
[1743259182961,7.9277,126.2,126.18,28.23161009]
[1743259183258,17.10438321,126.21,126.18,36.16051009]
[1743259185157,7.98433167,126.21,126.18,36.16051009]
[1743259185556,7.9279,126.2,126.18,28.23161009]
[1743259186155,9.17698321,126.21,126.18,28.23161009]
[1743259186360,9.12005154,126.2,126.18,28.23161009]
[1743259187154,7.9283,126.19,126.18,28.23161009]
[1743259187560,9.12005154,126.2,126.18,28.23161009]
[1743259187761,0.05693167,126.21,126.18,28.23161009]
[1743259188761,7.98423167,126.21,126.18,36.16041009]
[1743259190666,0.05693167,126.21,126.19,9.12005154]
[1743259190867,0.05693167,126.21,126.2,9.12005154]
[1743259191659,0.05693167,126.21,126.2,17.04775154]
[1743259192562,0.05693167,126.21,126.2,7.9277]
[1743259195268,0.05693167,126.21,126.18,28.23161009]
[1743259195473,9.12005154,126.2,126.18,0.05161009]
[1743259195670,9.12005154,126.2,126.18,28.21161009]
[1743259195972,17.04805154,126.2,126.18,28.21161009]
[1743259198170,0.05693167,126.21,126.18,28.21161009]
[1743259198171,9.12005154,126.19,126.18,28.21161009]
[1743259200171,17.04815154,126.2,126.18,28.21161009]
[1743259201272,7.9283,126.19,126.18,28.21161009]
[1743259201770,17.04795154,126.2,126.18,28.21161009]
[1743259201972,9.12005154,126.2,126.18,28.21161009]
[1743259202668,9.12005154,126.19,126.18,0.05161009]
[1743259202874,9.12005154,126.19,126.13,1.42515429]
[1743259203067,9.12005154,126.17,126.14,28.16]
[1743259203269,9.12005154,126.17,126.15,7.9305]
[1743259203774,17.05015154,126.17,126.14,36.0912]
[1743259203976,17.11116521,126.17,126.15,0.05220954]
[1743259205377,7.9302,126.16,126.15,0.05220954]
[1743259205976,9.18106521,126.17,126.15,0.05220954]
[1743259206279,0.06101367,126.17,126.15,7.98270954]
[1743259206471,0.06101367,126.17,126.15,0.05220954]
[1743259206779,0.06101367,126.17,126.15,7.98270954]
[1743259207180,0.06101367,126.17,126.15,0.05220954]
[1743259208873,0.06101367,126.17,126.15,7.98290954]
[1743259209876,0.06101367,126.17,126.16,7.9302]
[1743259212173,0.06101367,126.17,126.15,7.98270954]
[1743259213984,0.06101367,126.17,126.16,7.9302]
[1743259214183,0.06101367,126.17,126.15,0.05220954]
[1743259215081,0.06101367,126.17,126.16,9.12005154]
[1743259215287,9.12005154,126.21,126.17,9.12005154]
[1743259215484,9.12005154,126.21,126.18,28.18]
[1743259215882,9.12005154,126.21,126.18,36.1085]
[1743259216286,17.10097796,126.21,126.18,28.23795041]
[1743259219490,7.9279,126.2,126.18,28.23795041]
[1743259220892,9.12005154,126.19,126.18,28.23795041]
[1743259221195,9.12005154,126.19,126.18,0.05795041]
[1743259221892,9.12005154,126.19,126.16,28.18]
[1743259222092,9.12005154,126.19,126.14,28.16]
[1743259222093,9.12005154,126.17,126.14,28.16]
[1743259222793,7.9306,126.16,126.14,28.16]
[1743259222995,7.9306,126.16,126.14,28.22076006]
[1743259223194,0.05240626,126.17,126.14,28.22076006]
[1743259223394,7.98230626,126.17,126.14,36.15186006]
[1743259224091,0.05240626,126.17,126.14,28.22076006]
[1743259224294,0.05240626,126.17,126.16,9.12005154]
[1743259224695,0.05240626,126.17,126.16,17.05025154]
[1743259226500,0.05240626,126.17,126.16,18.47510141]
[1743259226800,0.05240626,126.17,126.16,17.05025154]
[1743259229706,0.05240626,126.17,126.15,17.05065154]
[1743259230205,0.05240626,126.17,126.16,7.9302]
[1743259231501,0.05240626,126.17,126.15,17.05065154]
[1743259231706,44.070955,126.28,126.17,364.0]
[1743259232005,158.44239443,126.3,126.17,364.0]
[1743259232006,158.44239443,126.3,126.27,9.12005154]
[1743259232202,98.53502173,126.3,126.29,9.12005154]
[1743259232404,259.69906916,126.31,126.29,381.04005154]
[1743259232606,275.44346882,126.31,126.3,17.04145154]
[1743259232806,275.49749983,126.31,126.3,17.04145154]
[1743259233007,275.49749983,126.31,126.3,24.96145154]
[1743259234909,275.49749983,126.31,126.3,30.04392561]
[1743259235303,0.05403101,126.31,126.3,96.66016836]
[1743259235508,0.05403101,126.31,126.3,82.45764275]
[1743259238206,14.20252561,126.34,126.3,74.53624275]
[1743259238405,14.20252561,126.34,126.3,102.67624275]
[1743259238605,10.27529514,126.34,126.3,102.67624275]
[1743259239206,0.05488785,126.33,126.31,0.05871493]
[1743259239401,0.05488785,126.33,126.31,292.07695487]
[1743259239806,0.05488785,126.33,126.31,299.99735487]
[1743259240312,18.70681144,126.36,126.31,299.99735487]
[1743259240913,18.70681144,126.36,126.32,10.86395427]
[1743259241718,0.053364,126.35,126.32,18.78405427]
[1743259242311,0.053364,126.35,126.32,28.60532425]
[1743259242615,7.971664,126.35,126.32,28.60532425]
[1743259242815,7.971664,126.35,126.32,20.68522425]
[1743259243821,7.971664,126.35,126.32,28.60532425]
[1743259244121,0.053364,126.35,126.34,217.48199719]
[1743259244420,14.20252561,126.39,126.34,217.48199719]
[1743259245119,28.14,126.41,126.34,346.38873924]
[1743259245120,14.20252561,126.37,126.34,346.38873924]
[1743259245512,14.20252561,126.35,126.34,346.38873924]
[1743259245718,14.20252561,126.35,126.34,343.17284887]
[1743259246416,22.12082561,126.35,126.34,343.17284887]
[1743259246617,14.20252561,126.35,126.34,343.17284887]
[1743259247119,22.1740031,126.37,126.36,216.98816626]
[1743259247318,28.14,126.4,126.36,216.98816626]
[1743259247517,14.20252561,126.38,126.36,216.98816626]
[1743259248318,7.9173,126.37,126.36,266.09451619]
[1743259248518,7.9173,126.37,126.36,266.14546704]
[1743259248723,14.20252561,126.38,126.36,266.14546704]
[1743259249221,14.20252561,126.38,126.36,179.32850853]
[1743259249623,7.9173,126.37,126.36,179.32850853]
[1743259249824,14.20252561,126.38,126.36,179.32850853]
[1743259250725,7.917,126.37,126.36,179.32850853]
[1743259251524,14.20252561,126.37,126.36,179.32850853]
[1743259252723,22.11952561,126.37,126.36,179.32850853]
[1743259253023,11.23187319,126.37,126.36,9.87222083]
[1743259253926,7.9176,126.36,126.35,43.39331334]
[1743259254628,7.9189,126.34,126.33,43.39331334]
[1743259256628,14.25347646,126.35,126.32,10.90858906]
[1743259257323,7.9195,126.33,126.32,10.90858906]
[1743259257824,7.9195,126.33,126.32,43.45357407]
[1743259259024,7.9195,126.33,126.31,86.78662671]
[1743259259025,14.20252561,126.33,126.31,86.78662671]
[1743259259329,2.0525,126.32,126.3,158.62145568]
[1743259259527,14.20252561,126.31,126.3,158.62145568]
[1743259259822,14.20252561,126.31,126.29,130.17120775]
[1743259260228,14.25417949,126.31,126.29,130.22578529]
[1743259260827,7.9214,126.3,126.29,130.22578529]
[1743259263434,7.9214,126.3,126.29,0.05457754]
[1743259265038,0.05165388,126.31,126.29,0.05457754]
[1743259265431,7.97275388,126.31,126.29,0.05457754]
[1743259265730,0.05165388,126.31,126.29,0.05457754]
[1743259265936,14.20252561,126.3,126.29,0.05457754]
[1743259266331,22.12392561,126.3,126.29,0.05457754]
[1743259266637,7.9214,126.3,126.29,0.05457754]
[1743259267331,7.97275388,126.31,126.29,0.05457754]
[1743259267535,0.05165388,126.31,126.29,0.05457754]
[1743259268737,7.9214,126.3,126.29,0.05457754]
[1743259272943,17.02216724,126.3,126.29,0.05457754]
[1743259275345,7.9214,126.3,126.29,0.05457754]
[1743259275642,0.05165388,126.31,126.29,37.29534478]
[1743259276455,0.05165388,126.31,126.3,7.9214]
[1743259276941,17.01996724,126.34,126.31,7.9207]
[1743259277246,9.10076724,126.34,126.3,9.10076724]
[1743259278043,7.9199,126.33,126.3,17.02196724]
[1743259278245,7.97531908,126.33,126.3,17.02196724]
[1743259278649,7.97531908,126.33,126.3,23.43395004]
[1743259280248,7.97531908,126.33,126.31,7.9207]
[1743259281149,7.97531908,126.33,126.31,14.3326828]
[1743259281840,7.97531908,126.33,126.31,6.4119828]
[1743259282250,7.9202,126.32,126.31,6.4119828]
[1743259282950,17.07598632,126.33,126.31,6.4119828]
[1743259284155,7.97521908,126.33,126.31,6.4119828]
[1743259287358,7.9202,126.32,126.31,6.4119828]
[1743259288054,17.02096724,126.32,126.31,6.4119828]
[1743259289353,17.02096724,126.32,126.3,94.23812122]
[1743259291455,7.9208,126.31,126.3,94.23812122]
[1743259292057,17.02116724,126.32,126.3,94.23812122]
[1743259292563,17.02116724,126.32,126.3,39.40469279]
[1743259293862,7.9208,126.31,126.3,39.40469279]
[1743259295762,7.9208,126.31,126.3,6.4119828]
[1743259297766,17.02126724,126.32,126.3,6.4119828]
[1743259297965,17.02126724,126.32,126.3,14.3332828]
[1743259299268,7.97521908,126.33,126.3,14.3332828]
[1743259300262,7.97521908,126.33,126.31,6.4119828]
[1743259300858,0.05541908,126.33,126.31,42.4726828]
[1743259301368,0.05541908,126.33,126.32,7.9202]
[1743259302577,0.05541908,126.33,126.32,14.3321828]
[1743259304076,0.05541908,126.33,126.32,23.43295004]
[1743259305484,0.05541908,126.33,126.32,111.25908846]
[1743259306485,0.05541908,126.33,126.32,94.23812122]
[1743259311790,7.97491908,126.33,126.32,94.23812122]
[1743259320392,7.97491908,126.33,126.32,39.42891542]
[1743259323401,17.07568632,126.33,126.32,39.42891542]
[1743259323801,17.07568632,126.33,126.32,50.43416356]
[1743259324600,22.16823435,126.33,126.32,50.43416356]
[1743259326796,7.9205,126.32,126.3,44.02218076]
[1743259326996,17.02126724,126.32,126.3,44.02218076]
[1743259327907,7.9208,126.31,126.3,44.02218076]
[1743259328808,17.02116724,126.32,126.3,44.02218076]
[1743259329404,7.9208,126.31,126.3,44.02218076]
[1743259330203,7.9208,126.31,126.3,50.43416356]
[1743259333411,7.9208,126.31,126.3,11.00524814]
[1743259336014,7.9208,126.31,126.29,0.05457754]
[1743259336711,0.05541908,126.33,126.29,9.15534478]
[1743259336910,0.05541908,126.33,126.3,9.10076724]
[1743259337110,0.05541908,126.33,126.32,9.10076724]
[1743259338914,0.05541908,126.33,126.32,17.02096724]
[1743259339110,0.05541908,126.33,126.32,9.10076724]
[1743259339314,0.05541908,126.33,126.31,37.22076724]
[1743259339614,0.05541908,126.33,126.31,45.14126724]
[1743259339805,0.05541908,126.33,126.31,28.12]
[1743259341015,7.9202,126.32,126.31,28.12]
[1743259341215,0.05541908,126.33,126.31,28.12]
[1743259342516,7.97521908,126.33,126.31,28.12]
[1743259344315,0.05541908,126.33,126.31,36.0408]
[1743259347016,7.97511908,126.33,126.31,28.12]
[1743259347712,7.9202,126.32,126.31,28.12]
[1743259349712,7.97531908,126.33,126.31,28.12]
[1743259351611,7.9202,126.32,126.31,28.12]
[1743259351817,7.9202,126.32,126.29,17.07704478]
[1743259352114,7.9202,126.32,126.3,28.12]
[1743259352723,7.97531908,126.33,126.3,36.0414]
[1743259354118,0.05541908,126.33,126.31,7.9206]
[1743259354520,0.05541908,126.33,126.3,37.22076724]
[1743259355119,7.97511908,126.33,126.3,37.22076724]
[1743259355521,0.05541908,126.33,126.31,17.02156724]
[1743259357221,7.97501908,126.33,126.31,17.02156724]
[1743259357620,0.05541908,126.33,126.31,17.02156724]
[1743259357822,0.05541908,126.33,126.32,7.9202]
[1743259359424,0.05541908,126.33,126.32,17.02096724]
[1743259361421,9.15618632,126.33,126.3,28.12]
[1743259361925,7.9205,126.32,126.3,28.12]
[1743259363022,7.9208,126.31,126.3,28.12]
[1743259365930,7.9204,126.32,126.3,28.12]
[1743259366834,7.9204,126.32,126.31,9.10076724]
[1743259367034,291.2609,126.47,126.31,373.10076724]
[1743259367227,9.10076724,126.42,126.36,9.10076724]
[1743259367429,5.07636993,126.41,126.36,37.26076724]
[1743259367735,5.07636993,126.4,126.36,37.26076724]
[1743259367936,9.10076724,126.42,126.36,45.17806724]
[1743259368242,9.10076724,126.42,126.37,0.06070232]
[1743259368540,17.01476724,126.42,126.37,0.06070232]
[1743259369435,9.10076724,126.41,126.37,0.06070232]
[1743259369632,9.10076724,126.39,126.37,0.06070232]
[1743259369940,9.10076724,126.39,126.36,28.16]
[1743259370238,9.10076724,126.39,126.37,0.0579048]
[1743259373440,9.10076724,126.4,126.37,0.0579048]
[1743259373635,7.9148,126.41,126.37,0.0579048]
[1743259373941,9.10076724,126.4,126.37,0.0579048]
[1743259374437,9.10076724,126.39,126.37,0.0579048]
[1743259377942,7.9148,126.41,126.37,7.9748048]
[1743259378138,9.10076724,126.4,126.37,7.9748048]
[1743259378734,9.10076724,126.39,126.37,7.9748048]
[1743259381038,9.10076724,126.41,126.37,0.0579048]
[1743259381243,9.10076724,126.42,126.38,9.10076724]
[1743259381536,9.10076724,126.43,126.39,28.1]
[1743259382039,9.10076724,126.44,126.42,7.9138]
[1743259382440,9.10076724,126.44,126.42,7.96468023]
[1743259383544,12.1438,126.46,126.42,7.96468023]
[1743259383944,13.33276724,126.46,126.42,37.25164747]
[1743259384139,9.10076724,126.46,126.42,37.25164747]
[1743259384336,261.14,126.47,126.43,17.01366724]
[1743259384542,261.14,126.47,126.43,9.10076724]
[1743259385242,261.14,126.47,126.42,37.25164747]
[1743259385747,269.0512,126.47,126.42,45.16524747]
[1743259386048,278.15196724,126.47,126.42,45.16524747]
[1743259386648,261.14,126.47,126.43,17.01356724]
[1743259386843,261.14,126.47,126.44,9.10076724]
[1743259387238,261.14,126.47,126.45,28.1]
[1743259387439,269.0509,126.47,126.45,28.1]
[1743259387647,269.0509,126.47,126.45,28.15840543]
[1743259389446,7.9109,126.47,126.45,28.15840543]
[1743259389648,7.9104,126.48,126.45,28.15840543]
[1743259390149,261.0,126.53,126.45,37.25917267]
[1743259390340,9.10076724,126.5,126.45,37.20076724]
[1743259390546,9.10076724,126.5,126.48,0.05923002]
[1743259390742,17.01066724,126.49,126.48,0.05923002]
[1743259397555,7.9133,126.43,126.4,7.9148]
[1743259397752,9.10076724,126.45,126.4,17.01556724]
[1743259397957,9.10076724,126.45,126.4,45.09556724]
[1743259398652,9.10076724,126.45,126.41,0.05021358]
[1743259398955,7.96677034,126.44,126.41,0.05021358]
[1743259400154,7.9133,126.43,126.41,0.05021358]
[1743259401257,7.9139,126.42,126.41,0.05021358]
[1743259402660,7.9135,126.43,126.41,0.05021358]
[1743259402956,0.05357034,126.44,126.41,9.15098082]
[1743259403147,7.96657034,126.44,126.41,17.06518082]
[1743259403860,7.96657034,126.44,126.42,28.08]
[1743259408260,0.05357034,126.44,126.42,28.08]
[1743259409261,0.05357034,126.44,126.43,7.9133]
[1743259411262,0.05357034,126.44,126.42,35.9935]
[1743259412859,9.15433758,126.44,126.41,0.05021358]
[1743259413665,17.06753758,126.44,126.41,0.05021358]
[1743259414062,7.9136,126.43,126.41,0.05021358]
[1743259414667,17.01466724,126.42,126.41,0.05021358]
[1743259418867,17.01466724,126.42,126.41,1.358e-05]
[1743259419167,17.01466724,126.42,126.36,11.00524814]
[1743259419168,7.917,126.37,126.36,11.00524814]
[1743259419367,17.01776724,126.37,126.36,11.00524814]
[1743259422869,17.01776724,126.37,126.36,7.73434814]
[1743259423072,7.9176,126.36,126.35,0.05987841]
[1743259423372,17.01836724,126.36,126.35,0.05987841]
[1743259434379,7.9192,126.34,126.31,7.9207]
[1743259434580,9.10076724,126.33,126.31,7.9207]
[1743259434879,9.10076724,126.33,126.3,36.0211]
[1743259435080,17.02036724,126.33,126.3,36.0211]
[1743259435482,17.07302075,126.33,126.3,36.0735861]
[1743259435980,17.07302075,126.33,126.31,7.9208]
[1743259436279,9.15342075,126.33,126.31,7.9208]
[1743259436477,9.10076724,126.32,126.3,0.0524861]
[1743259436677,9.10076724,126.31,126.3,0.0524861]
[1743259436874,17.02156724,126.31,126.3,0.0524861]
[1743259437670,7.9208,126.31,126.3,0.0524861]
[1743259438881,17.02156724,126.31,126.3,0.0524861]
[1743259444786,9.10076724,126.31,126.3,0.0524861]
[1743259445492,17.02156724,126.31,126.3,0.0524861]
[1743259452293,17.02156724,126.31,126.24,13.44106724]
[1743259452294,7.9221,126.29,126.24,4.3403]
[1743259452495,9.10076724,126.27,126.25,28.22]
[1743259452690,9.10076724,126.29,126.25,28.22]
[1743259453601,0.05732269,126.28,126.26,0.05511116]
[1743259454300,0.05732269,126.28,126.26,7.97901116]
[1743259454701,7.98022269,126.28,126.26,0.05511116]
[1743259454897,0.05732269,126.28,126.26,0.05511116]
[1743259455702,0.05732269,126.28,126.26,7.97901116]
[1743259456106,0.05732269,126.28,126.26,0.05511116]
[1743259456905,7.98032269,126.28,126.26,0.05511116]
[1743259458804,7.98032269,126.28,126.26,28.21511116]
[1743259460010,7.9233,126.27,126.26,28.21511116]
[1743259460804,17.08108993,126.28,126.26,28.21511116]
[1743259461408,17.08108993,126.28,126.26,0.05511116]
[1743259462009,7.9233,126.27,126.26,0.05511116]
[1743259462308,9.15808993,126.28,126.26,0.05511116]
[1743259462711,17.08128993,126.28,126.26,0.05511116]
[1743259463209,7.98052269,126.28,126.26,0.05511116]
[1743259463709,7.98052269,126.28,126.26,7.97891116]
[1743259464412,7.98052269,126.28,126.26,0.05511116]
[1743259472420,7.9233,126.27,126.26,0.05511116]
[1743259473025,17.02406724,126.27,126.26,0.05511116]
[1743259478020,9.10076724,126.27,126.26,0.05511116]
[1743259478324,17.08098993,126.28,126.26,0.05511116]
[1743259478519,0.05732269,126.28,126.26,0.05511116]
[1743259478727,0.05732269,126.28,126.27,28.12]
[1743259479825,9.15808993,126.28,126.27,28.12]
[1743259480022,7.9233,126.27,126.26,0.05511116]
[1743259480224,17.02406724,126.27,126.26,0.05511116]
[1743259482427,17.08098993,126.28,126.26,0.05511116]
[1743259483529,17.02406724,126.27,126.26,0.05511116]
[1743259485931,9.10076724,126.27,126.22,33.01693262]
[1743259486132,9.10076724,126.23,126.22,61.13693262]
[1743259486728,17.02606724,126.24,126.23,11.02265039]
[1743259489133,7.9258,126.23,126.22,0.05004383]
[1743259489329,17.02656724,126.23,126.22,0.05004383]
[1743259501041,9.15457253,126.25,126.22,28.19004383]
[1743259501240,0.05380529,126.25,126.22,28.19004383]
[1743259501440,0.05380529,126.25,126.23,7.9254]
[1743259503641,17.07917253,126.25,126.22,36.11614383]
[1743259503844,9.15457253,126.25,126.22,36.11614383]
[1743259504536,0.05380529,126.25,126.23,7.9258]
[1743259504937,0.05380529,126.25,126.22,28.19004383]
[1743259505745,7.97840529,126.25,126.22,36.11614383]
[1743259506048,17.07917253,126.25,126.22,28.19004383]
[1743259506243,17.02596724,126.24,126.22,28.19004383]
[1743259507443,9.10076724,126.24,126.22,28.19004383]
[1743259507643,17.07947253,126.25,126.22,28.19004383]
[1743259510646,9.10076724,126.23,126.22,0.05004383]
[1743259511140,17.02656724,126.23,126.22,0.05004383]
[1743259521051,22.10540103,126.23,126.22,0.05004383]
[1743259521451,7.9283,126.19,126.18,28.14]
[1743259521651,17.02906724,126.19,126.17,44.03958301]
[1743259521857,17.02906724,126.19,126.17,72.17958301]
[1743259522245,9.10076724,126.19,126.17,72.17958301]
[1743259522556,9.15552326,126.19,126.17,72.23531802]
[1743259524155,9.15552326,126.19,126.17,80.16481802]
[1743259524354,9.15552326,126.19,126.17,36.12523501]
[1743259525251,0.05475602,126.19,126.18,7.9289]
[1743259525448,9.10076724,126.23,126.18,9.10076724]
[1743259525756,9.10076724,126.24,126.19,11.23066724]
[1743259525959,17.02636724,126.24,126.2,36.0672]
[1743259526256,9.10076724,126.23,126.2,28.14]
[1743259526457,7.9268,126.22,126.2,28.14]
[1743259526648,7.9268,126.22,126.2,28.20046617]
[1743259527347,17.08274623,126.23,126.2,36.12806617]
[1743259527759,9.15664623,126.23,126.2,28.20046617]
[1743259527963,9.10076724,126.22,126.2,28.20046617]
[1743259528260,17.02746724,126.22,126.2,28.20046617]
[1743259530161,17.08274623,126.23,126.2,36.12796617]
[1743259532861,0.05587899,126.23,126.2,28.20046617]
[1743259533062,0.05587899,126.23,126.2,37.30123341]
[1743259534867,0.05587899,126.23,126.22,7.9264]
[1743259535269,0.05587899,126.23,126.2,37.30123341]
[1743259535462,0.05587899,126.23,126.2,28.20046617]
[1743259536668,7.98197899,126.23,126.2,36.12786617]
[1743259537471,7.9267,126.22,126.2,28.20046617]
[1743259537674,17.02746724,126.22,126.2,28.20046617]
[1743259537870,9.10076724,126.21,126.2,0.06046617]
[1743259538074,17.02786724,126.21,126.2,0.06046617]
[1743259538777,7.9277,126.2,126.19,44.03958301]
[1743259538975,17.02846724,126.2,126.19,44.03958301]
[1743259542373,17.02846724,126.2,126.18,0.05047512]
[1743259542774,17.08469818,126.2,126.18,0.05047512]
[1743259545777,7.9283,126.19,126.18,0.05047512]
[1743259545971,17.02906724,126.19,126.18,0.05047512]
[1743259562289,9.10076724,126.19,126.14,72.17958301]
[1743259562495,9.10076724,126.16,126.14,44.03958301]
[1743259562993,7.9308,126.15,126.14,44.03958301]
[1743259563679,7.9308,126.15,126.13,44.09240096]
[1743259563886,7.9308,126.15,126.13,72.23240096]
[1743259564090,17.03156724,126.15,126.13,44.09240096]
[1743259564485,7.9315,126.14,126.13,44.09240096]
[1743259565592,17.03226724,126.14,126.13,44.09240096]
[1743259566489,17.03226724,126.14,126.13,0.05281795]
[1743259566989,7.9327,126.12,126.11,44.03958301]
[1743259567285,17.03346724,126.12,126.11,44.03958301]
[1743259567493,9.10076724,126.12,126.11,44.03958301]
[1743259568192,17.03346724,126.12,126.11,44.03958301]
[1743259569182,9.10076724,126.12,126.1,87.88467009]
[1743259569382,17.03406724,126.11,126.1,0.05853167]
[1743259569591,9.10076724,126.11,126.1,0.05853167]
[1743259570592,17.03406724,126.11,126.1,0.05853167]
[1743259574295,9.10076724,126.07,126.06,44.03958301]
[1743259575099,17.03666724,126.07,126.06,44.03958301]
[1743259576195,17.03666724,126.07,126.06,11.02265039]
[1743259579499,9.10076724,126.07,126.06,11.02265039]
[1743259580102,17.03666724,126.07,126.06,11.02265039]
[1743259580303,17.03666724,126.07,126.05,0.06102702]
[1743259580605,9.10076724,126.06,126.05,0.06102702]
[1743259583108,17.03726724,126.06,126.05,0.06102702]
[1743259586510,9.10076724,126.06,126.05,0.06102702]
[1743259588807,9.1576966,126.08,126.05,28.22102702]
[1743259590113,9.10076724,126.07,126.05,28.22102702]
[1743259590316,9.1576966,126.08,126.05,28.22102702]
[1743259591014,9.10076724,126.07,126.05,28.22102702]
[1743259591214,9.10076724,126.06,126.05,28.22102702]
[1743259592214,9.10076724,126.07,126.05,28.22102702]
[1743259592614,17.03666724,126.07,126.05,28.22102702]
[1743259595017,17.03726724,126.06,126.05,28.22102702]
[1743259595921,9.10076724,126.06,126.05,28.22102702]
[1743259601019,17.03666724,126.07,126.05,28.22102702]
[1743259602217,9.10076724,126.07,126.05,36.15782702]
[1743259602415,0.05692936,126.08,126.05,37.32179426]
[1743259602913,0.05692936,126.08,126.07,17.03666724]
[1743259603117,9.10076724,126.16,126.1,9.10076724]
[1743259603317,9.10076724,126.17,126.12,9.10076724]
[1743259604019,7.9305,126.16,126.12,17.03296724]
[1743259604209,7.98944887,126.16,126.13,0.0504785]
[1743259605621,7.9309,126.15,126.13,0.0504785]
[1743259607116,17.09021611,126.16,126.13,0.0504785]
[1743259607321,7.98944887,126.16,126.13,0.0504785]
[1743259608418,7.98944887,126.16,126.13,28.2104785]
[1743259608922,0.05894887,126.16,126.13,36.1421785]
[1743259609321,7.98924887,126.16,126.13,36.1421785]
[1743259610524,0.05894887,126.16,126.13,36.1421785]
[1743259613932,7.98924887,126.16,126.13,28.2104785]
[1743259614934,7.9311,126.15,126.13,28.2104785]
[1743259617032,17.09001611,126.16,126.13,28.2104785]
[1743259617435,7.98924887,126.16,126.13,28.2104785]
[1743259620237,0.05894887,126.16,126.13,28.2104785]
[1743259620437,0.05894887,126.16,126.13,37.31124574]
[1743259620838,0.05894887,126.16,126.14,7.9308]
[1743259621034,0.05894887,126.16,126.15,9.10076724]
[1743259621439,0.05894887,126.16,126.15,17.03156724]
[1743259621841,0.05894887,126.16,126.14,11.20346724]
[1743259622441,0.05894887,126.16,126.14,19.13466724]
[1743259623739,0.05894887,126.16,126.13,28.2104785]
[1743259623947,9.10076724,126.15,126.13,0.0504785]
[1743259624242,0.05894887,126.16,126.13,0.0504785]
[1743259624243,9.10076724,126.14,126.13,0.0504785]
[1743259624437,17.03226724,126.14,126.13,0.0504785]
[1743259628843,9.10076724,126.14,126.09,364.0]
[1743259629043,9.10076724,126.11,126.08,28.14]
[1743259629241,7.9343,126.1,126.07,48.26341763]
[1743259629444,7.9343,126.1,126.07,39.16265039]